bitfinex/quotes_SOLUSD_20250306
["timestamp","ask_amount","ask_price","bid_price","bid_amount"]
[1741271935514,0.03,146.64,146.58,0.14216157]
[1741271936211,0.03,146.64,146.55,6.96576157]
[1741271936431,0.03,146.64,146.55,0.14216157]
[1741271936717,0.03,146.64,146.53,6.8245]
[1741271936920,75.22254426,146.63,146.48,92.7]
[1741271937130,64.02254426,146.62,146.49,1.4329657]
[1741271937330,18.933972,146.59,146.45,56.38897008]
[1741271937542,70.34154426,146.58,146.45,6.8281]
[1741271937752,9.0371,146.58,146.42,92.7]
[1741271937917,9.0371,146.58,146.42,149.08948622]
[1741271938122,9.0371,146.58,146.45,54.9561221]
[1741271938377,6.319,146.58,146.5,312.0]
[1741271938928,18.933972,146.57,146.46,0.033]
[1741271939124,6.319,146.58,146.46,0.033]
[1741271939125,75.36254426,146.56,146.46,0.033]
[1741271939341,70.84564426,146.56,146.47,61.7834221]
[1741271939521,13.1416,146.58,146.49,19.07613357]
[1741271939721,64.02254426,146.62,146.52,54.9561221]
[1741271939935,6.8203,146.62,146.53,0.14216157]
[1741271940140,70.84284426,146.62,146.53,0.14216157]
[1741271940345,0.03,146.63,146.55,0.14216157]
[1741271940526,0.03,146.63,146.57,55.09828367]
[1741271940729,6.8499,146.63,146.57,0.14216157]
[1741271940938,70.87244426,146.63,146.57,0.14216157]
[1741271941134,0.28432314,146.61,146.47,0.14216157]
[1741271941350,23.876,146.59,146.49,0.14216157]
[1741271941658,23.876,146.59,146.46,0.033]
[1741271941659,6.1352,146.57,146.46,0.033]
[1741271941825,82.95651626,146.56,146.46,0.033]
[1741271942025,18.933972,146.54,146.46,0.033]
[1741271942231,75.36254426,146.53,146.46,0.033]
[1741271942760,18.933972,146.56,146.47,0.14216157]
[1741271943059,6.1352,146.57,146.46,0.033]
[1741271943233,6.1352,146.57,146.47,0.14216157]
[1741271943535,12.958,146.57,146.49,0.14216157]
[1741271943730,12.958,146.57,146.46,0.033]
[1741271943937,12.958,146.57,146.47,73.8900941]
[1741271944152,12.958,146.57,146.49,0.14216157]
[1741271944364,76.98054426,146.57,146.46,0.033]
[1741271944550,64.02254426,146.56,146.46,0.033]
[1741271944860,18.933972,146.54,146.46,0.033]
[1741271945057,3.7713,146.51,146.43,312.0]
[1741271945259,18.933972,146.49,146.35,88.1329]
[1741271945557,6.8264,146.49,146.39,54.9561221]
[1741271945750,23.8924,146.49,146.37,54.9561221]
[1741271945952,18.226,146.5,146.41,0.14216157]
[1741271946141,11.4,146.5,146.43,0.14216157]
[1741271946450,17.0625,146.52,146.42,0.14216157]
[1741271946654,64.02254426,146.51,146.35,128.0352]
[1741271946960,64.02254426,146.51,146.38,73.60577096]
[1741271947129,64.02254426,146.5,146.39,0.14216157]
[1741271947329,6.8264,146.49,146.41,0.14216157]
[1741271947755,6.825,146.52,146.41,0.14216157]
[1741271947946,6.825,146.52,146.4,0.42648471]
[1741271947947,64.02254426,146.51,146.4,0.42648471]
[1741271948145,64.02254426,146.51,146.45,0.14216157]
[1741271948746,64.02254426,146.51,146.41,74.03225567]
[1741271948935,64.02254426,146.51,146.41,20.50971988]
[1741271949138,64.02254426,146.51,146.41,0.14216157]
[1741271949351,64.02254426,146.5,146.38,0.14216157]
[1741271949560,6.8264,146.49,146.39,18.64964886]
[1741271949764,162.54,146.54,146.44,0.14216157]
[1741271950061,18.933972,146.52,146.41,0.14216157]
[1741271950264,18.933972,146.5,146.35,75.03975756]
[1741271950443,18.933972,146.48,146.33,54.9561221]
[1741271950640,18.933972,146.46,146.33,6.8338]
[1741271950849,82.07364426,146.47,146.32,61.7904221]
[1741271951066,81.72614426,146.53,146.39,18.64964886]
[1741271951260,64.02254426,146.52,146.44,0.14216157]
[1741271951567,64.02254426,146.52,146.46,0.14216157]
[1741271951868,64.02254426,146.56,146.49,0.14216157]
[1741271952167,64.02254426,146.56,146.45,8.26161797]
[1741271952168,13.1344,146.58,146.47,55.38260681]
[1741271952371,70.84364426,146.61,146.51,55.09828367]
[1741271952581,87.89564426,146.61,146.51,0.14216157]
[1741271952753,64.02254426,146.6,146.47,0.14216157]
[1741271953076,18.933972,146.59,146.47,0.14216157]
[1741271953277,18.933972,146.59,146.45,55.09828367]
[1741271953447,23.8777,146.58,146.45,0.14216157]
[1741271953643,18.933972,146.56,146.41,55.16936445]
[1741271953846,20.933972,146.56,146.38,1.43374476]
[1741271954044,11.36,146.57,146.42,0.42648471]
[1741271954045,64.02254426,146.55,146.42,0.42648471]
[1741271954240,64.02254426,146.55,146.42,75.32357975]
[1741271954479,18.79181043,146.54,146.41,54.9561221]
[1741271954776,64.02254426,146.53,146.42,56.3898769]
[1741271954981,64.02254426,146.53,146.43,55.09828367]
[1741271955157,64.02254426,146.53,146.48,0.14216157]
[1741271955479,23.8826,146.55,146.48,0.14216157]
[1741271955653,23.8826,146.55,146.45,0.14216157]
[1741271955860,64.02254426,146.54,146.45,0.14216157]
[1741271956050,0.28432314,146.5,146.4,0.033]
[1741271956253,64.02254426,146.49,146.4,0.033]
[1741271956449,25.8826,146.55,146.42,54.9561221]
[1741271956450,64.02254426,146.54,146.42,54.9561221]
[1741271956658,6.1259,146.56,146.48,0.14216157]
[1741271956854,70.66434426,146.61,146.5,55.09828367]
[1741271957057,6.8212,146.6,146.52,0.14216157]
[1741271957584,64.02254426,146.59,146.49,0.14216157]
[1741271958096,64.02254426,146.59,146.48,0.14216157]
[1741271958265,64.02254426,146.59,146.52,54.9561221]
[1741271958467,162.58,146.62,146.53,0.14216157]
[1741271958468,6.8208,146.61,146.53,0.14216157]
[1741271958683,6.8208,146.61,146.57,0.14216157]
[1741271958976,0.03,146.63,146.57,0.14216157]
[1741271959175,0.03,146.63,146.57,56.53045683]
[1741271959376,0.03,146.63,146.52,0.28432314]
[1741271959561,0.03,146.63,146.53,1.57481604]
[1741271959761,0.03,146.63,146.55,55.09828367]
[1741271960074,64.02254426,146.62,146.55,0.14216157]
[1741271960381,82.95651626,146.61,146.48,1.4327839]
[1741271960677,11.36,146.62,146.44,92.7]
[1741271960678,18.933972,146.59,146.44,92.7]
[1741271960861,18.933972,146.57,146.43,8.26222218]
[1741271961057,18.933972,146.57,146.44,55.09828367]
[1741271961269,18.933972,146.57,146.44,0.14216157]
[1741271961471,23.8809,146.56,146.44,0.14216157]
[1741271961674,64.02254426,146.55,146.44,19.07613357]
[1741271961879,64.02254426,146.55,146.46,19.07613357]
[1741271962055,6.8212,146.6,146.52,55.09828367]
[1741271962259,6.8207,146.62,146.55,0.14216157]
[1741271962700,23.8715,146.62,146.49,19.07613357]
[1741271963004,0.28432314,146.59,146.44,6.8286]
[1741271963169,64.02254426,146.58,146.47,54.9561221]
[1741271963351,64.02254426,146.58,146.45,20.08254251]
[1741271963556,106.83571626,146.57,146.44,6.8286]
[1741271963775,64.02254426,146.56,146.46,19.07613357]
[1741271964070,6.8226,146.57,146.48,0.14216157]
[1741271964284,64.02254426,146.56,146.44,11.4]
[1741271964489,64.02254426,146.55,146.43,156.33920546]
[1741271964774,6.8212,146.6,146.51,0.14216157]
[1741271964989,64.02254426,146.59,146.51,0.14216157]
[1741271965359,64.02254426,146.59,146.48,0.14216157]
[1741271965553,6.8226,146.57,146.48,6.96886157]
[1741271965755,70.84514426,146.57,146.46,1.43310853]
[1741271965949,70.84514426,146.57,146.46,0.14216157]
[1741271966250,64.02254426,146.61,146.53,55.09828367]
[1741271966449,0.03,146.63,146.55,0.14216157]
[1741271966662,6.85,146.63,146.55,0.14216157]
[1741271966863,0.03,146.63,146.56,1.43251861]
[1741271967062,0.03,146.63,146.54,0.14216157]
[1741271967278,6.8501,146.63,146.54,0.14216157]
[1741271967463,0.03,146.63,146.58,0.14216157]
[1741271967776,0.03,146.63,146.6,0.14216157]
[1741271968553,0.03,146.63,146.62,0.14216157]
[1741271968757,0.03,146.63,146.62,312.14216157]
[1741271968984,0.03,146.63,146.62,312.0]
[1741271969273,11.49,146.63,146.51,81.3]
[1741271969471,11.49,146.63,146.52,1.43291708]
[1741271969472,6.8203,146.62,146.52,1.43291708]
[1741271969674,6.8203,146.62,146.53,18.64964886]
[1741271969876,0.03,146.63,146.57,54.9561221]
[1741271970060,6.8499,146.63,146.58,0.14216157]
[1741271970459,6.8499,146.63,146.53,11.4]
[1741271970664,6.8499,146.63,146.54,0.14216157]
[1741271971055,75.48254426,146.62,146.49,11.4]
[1741271971255,64.02254426,146.61,146.5,56.38901663]
[1741271971480,70.84364426,146.61,146.52,6.96696157]
[1741271971673,0.03,146.63,146.58,54.9561221]
[1741271971878,0.03,146.63,146.6,55.09828367]
[1741271972075,0.03,146.63,146.62,312.14216157]
[1741271972672,6.8498,146.63,146.55,57.9493221]
[1741271972872,0.03,146.63,146.56,1.4324277]
[1741271973093,0.03,146.63,146.56,0.14216157]
[1741271973308,6.85,146.63,146.55,81.3]
[1741271973471,0.03,146.63,146.54,20.08211545]
[1741271973671,0.03,146.63,146.53,92.91324235]
[1741271973902,0.03,146.63,146.54,73.60577096]
[1741271974071,0.03,146.63,146.55,56.38844416]
[1741271974271,0.03,146.63,146.53,92.91324235]
[1741271974571,64.05254426,146.63,146.53,55.16936445]
[1741271974767,64.05254426,146.63,146.5,18.64964886]
[1741271974975,64.05254426,146.63,146.51,54.9561221]
[1741271975178,64.02254426,146.62,146.46,92.7]
[1741271975401,64.02254426,146.61,146.46,149.08898416]
[1741271975573,23.876,146.59,146.51,312.0]
[1741271975776,6.8203,146.62,146.53,73.60577096]
[1741271975974,23.8711,146.62,146.52,92.7]
[1741271976276,23.8711,146.62,146.55,0.14216157]
[1741271976277,6.8203,146.62,146.55,0.14216157]
[1741271976781,64.02254426,146.61,146.49,54.9561221]
[1741271976987,18.933972,146.59,146.45,54.9561221]
[1741271977295,70.07064426,146.58,146.46,54.9561221]
[1741271977494,64.02254426,146.6,146.5,54.9561221]
[1741271977700,70.60034426,146.63,146.54,55.09828367]
[1741271977995,6.8499,146.63,146.56,0.14216157]
[1741271978401,64.02254426,146.62,146.51,0.14216157]
[1741271978575,64.02254426,146.61,146.52,54.9561221]
[1741271978778,64.02254426,146.61,146.5,18.79181043]
[1741271978998,64.02254426,146.61,146.5,0.14216157]
[1741271979184,64.02254426,146.6,146.55,0.14216157]
[1741271979697,6.8217,146.59,146.5,0.14216157]
[1741271979900,6.8217,146.59,146.44,0.21324235]
[1741271979901,0.28432314,146.57,146.44,0.21324235]
[1741271980089,75.58254426,146.56,146.44,0.21324235]
[1741271980397,75.58254426,146.56,146.46,54.9891221]
[1741271980695,75.58254426,146.56,146.46,0.033]
[1741271981003,64.02254426,146.56,146.47,19.07613357]
[1741271981197,70.84424426,146.59,146.49,19.07613357]
[1741271981398,70.84424426,146.59,146.51,0.14216157]
[1741271981602,11.56,146.6,146.53,0.14216157]
[1741271981784,18.3814,146.6,146.5,0.14216157]
[1741271981986,18.3814,146.6,146.5,55.09828367]
[1741271982186,18.3814,146.6,146.5,0.14216157]
[1741271982577,18.3814,146.6,146.53,312.0]
[1741271982782,18.3814,146.6,146.54,0.14216157]
[1741271982982,64.02254426,146.61,146.54,0.14216157]
[1741271983179,70.84334426,146.61,146.5,0.14216157]
[1741271983524,70.84334426,146.61,146.52,0.14216157]
[1741271983705,64.02254426,146.61,146.54,0.14216157]
[1741271984019,0.03,146.63,146.57,0.14216157]
[1741271984193,0.03,146.63,146.58,55.09828367]
[1741271984513,0.03,146.63,146.58,0.14216157]
[1741271984878,0.03,146.63,146.59,0.14216157]
[1741271985304,6.8501,146.63,146.59,0.14216157]
[1741271985618,0.03,146.63,146.58,18.933972]
[1741271985821,0.03,146.63,146.61,55.09828367]
[1741271986029,0.03,146.63,146.62,55.09828367]
[1741271986323,0.03,146.63,146.62,312.14216157]
[1741271986681,0.03,146.63,146.62,367.09828367]
[1741271987231,0.03,146.63,146.62,385.74793253]
[1741271987529,0.03,146.63,146.62,397.14793253]
[1741271987833,0.03,146.63,146.62,485.55255567]
[1741271988040,0.03,146.66,146.65,55.09828367]
[1741271988343,0.03,146.66,146.65,92.84216157]
[1741271988535,0.03,146.66,146.65,147.79828367]
[1741271988704,0.03,146.66,146.65,0.14216157]
[1741271988913,0.03,146.66,146.6,18.64964886]
[1741271989105,0.03,146.66,146.59,54.9561221]
[1741271989430,0.03,146.66,146.57,81.3]
[1741271989615,0.03,146.66,146.56,11.61324235]
[1741271989616,0.03,146.66,146.56,0.21324235]
[1741271989923,0.03,146.66,146.57,54.9561221]
[1741271990125,0.03,146.66,146.59,54.9561221]
[1741271990510,0.03,146.66,146.6,55.09828367]
[1741271990710,0.03,146.66,146.6,0.14216157]
[1741271991309,0.03,146.66,146.63,0.14216157]
[1741271991937,0.03,146.66,146.61,0.14216157]
[1741271992312,0.03,146.66,146.6,55.13128367]
[1741271992508,0.03,146.66,146.6,0.17516157]
[1741271992721,0.03,146.66,146.6,0.033]
[1741271993230,64.02254426,146.65,146.6,0.033]
[1741271993409,0.28432314,146.64,146.6,0.033]
[1741271993818,0.28432314,146.62,146.6,0.033]
[1741271994025,64.02254426,146.61,146.6,0.033]
[1741271994620,64.3068674,146.61,146.5,54.9561221]
[1741271994820,75.26254426,146.6,146.52,312.0]
[1741271995007,64.02254426,146.6,146.56,0.14216157]
[1741271995222,1.8903,146.64,146.56,0.14216157]
[1741271995223,64.02254426,146.63,146.56,55.09828367]
[1741271995421,64.02254426,146.63,146.56,0.14216157]
[1741271995626,64.02254426,146.63,146.55,55.09828367]
[1741271995831,64.02254426,146.63,146.52,81.3]
[1741271996134,18.933972,146.61,146.47,6.8273]
[1741271996319,18.933972,146.59,146.46,0.033]
[1741271996513,75.24254426,146.58,146.46,0.033]
[1741271996713,75.24254426,146.58,146.47,0.14216157]
[1741271996913,82.95651626,146.57,146.46,0.033]
[1741271997639,64.3068674,146.57,146.48,0.14216157]
[1741271997820,0.28432314,146.55,146.48,0.14216157]
[1741271998130,64.02254426,146.54,146.48,54.9561221]
[1741271998339,0.28432314,146.56,146.51,0.14216157]
[1741271998540,70.84534426,146.57,146.51,0.14216157]
[1741271998541,64.02254426,146.57,146.51,0.14216157]
[1741271999322,64.02254426,146.57,146.49,0.14216157]
[1741271999513,64.02254426,146.57,146.49,54.9561221]
[1741271999713,64.02254426,146.57,146.5,0.14216157]
[1741271999925,64.02254426,146.57,146.46,1.46606021]
[1741272000122,0.28432314,146.56,146.48,54.9561221]
[1741272000324,18.933972,146.54,146.46,0.033]
[1741272000625,18.933972,146.52,146.46,0.033]
[1741272000938,18.933972,146.52,146.4,0.033]
[1741272000939,18.933972,146.48,146.4,0.033]
[1741272001132,18.933972,146.46,146.4,0.033]
[1741272001329,64.02254426,146.45,146.41,0.14216157]
[1741272001528,64.02254426,146.48,146.43,55.09828367]
[1741272001733,6.5339,146.49,146.4,0.033]
[1741272001734,64.3068674,146.47,146.4,0.033]
[1741272002039,70.85034426,146.46,146.4,0.033]
[1741272002234,64.02254426,146.49,146.43,366.9561221]
[1741272002432,64.02254426,146.49,146.44,55.09828367]
[1741272002649,70.37304426,146.54,146.48,55.09828367]
[1741272002823,6.267,146.59,146.52,0.14216157]
[1741272003019,64.02254426,146.6,146.55,0.14216157]
[1741272003256,6.267,146.64,146.57,0.14216157]
[1741272003257,64.02254426,146.63,146.57,0.14216157]
[1741272003563,64.02254426,146.63,146.56,54.9561221]
[1741272003564,64.02254426,146.62,146.56,0.14216157]
[1741272003724,64.02254426,146.62,146.48,11.4]
[1741272003725,18.933972,146.6,146.48,54.9561221]
[1741272003929,0.28432314,146.56,146.45,0.14216157]
[1741272004125,0.28432314,146.54,146.43,61.7852221]
[1741272004432,64.02254426,146.53,146.43,0.033]
[1741272004634,0.28432314,146.51,146.43,0.033]
[1741272004834,0.28432314,146.49,146.43,0.033]
[1741272005034,0.28432314,146.47,146.43,0.033]
[1741272005335,64.02254426,146.46,146.43,0.033]
[1741272005739,64.02254426,146.46,146.44,0.14216157]
[1741272005959,70.85054426,146.46,146.43,0.033]
[1741272006146,64.02254426,146.46,146.43,0.033]
[1741272006555,64.02254426,146.55,146.45,55.09828367]
[1741272006753,6.8208,146.61,146.51,54.9561221]
[1741272007061,18.64964886,146.59,146.47,54.9561221]
[1741272007263,64.02254426,146.58,146.45,0.14216157]
[1741272007426,0.28432314,146.57,146.48,0.14216157]
[1741272007627,18.933972,146.57,146.44,54.9561221]
[1741272007827,23.8728,146.61,146.43,0.033]
[1741272007828,18.933972,146.53,146.43,0.033]
[1741272008038,64.02254426,146.52,146.43,0.033]
[1741272008233,64.02254426,146.52,146.45,0.14216157]
[1741272008561,64.02254426,146.51,146.45,0.14216157]
[1741272008767,64.02254426,146.51,146.43,0.17516157]
[1741272008950,64.02254426,146.51,146.47,0.14216157]
[1741272009273,64.3068674,146.5,146.46,312.0]
[1741272009428,64.3068674,146.5,146.43,0.033]
[1741272009630,18.933972,146.48,146.43,0.033]
[1741272009833,0.28432314,146.46,146.43,0.033]
[1741272010048,6.8282,146.45,146.43,0.033]
[1741272010252,64.3068674,146.44,146.43,0.033]
[1741272010440,18.933972,146.44,146.43,0.033]
[1741272010838,18.933972,146.43,146.4,0.033]
[1741272011157,23.8988,146.45,146.4,0.033]
[1741272011158,18.64964886,146.41,146.4,0.033]
[1741272011360,18.64964886,146.42,146.31,0.033]
[1741272011572,6.2609,146.39,146.31,0.033]
[1741272011852,18.64964886,146.37,146.31,0.033]
[1741272012024,91.96,146.38,146.31,0.033]
[1741272012025,23.9135,146.36,146.31,0.033]
[1741272012230,6.832,146.37,146.31,0.033]
[1741272012435,42.56164886,146.37,146.32,312.0]
[1741272012643,18.64964886,146.36,146.31,0.033]
[1741272013038,23.912,146.37,146.31,0.033]
[1741272013439,99.44964886,146.36,146.31,0.033]
[1741272013652,80.8,146.35,146.31,0.033]
[1741272013955,6.8334,146.34,146.31,0.033]
[1741272014257,25.48304886,146.34,146.31,0.033]
[1741272014558,18.933972,146.33,146.31,0.033]
[1741272014762,99.59181043,146.32,146.31,0.033]
[1741272015054,0.28432314,146.31,146.28,0.0001]
[1741272015245,18.933972,146.29,146.28,0.0001]
[1741272015855,18.933972,146.29,146.22,312.033]
[1741272016073,18.933972,146.27,146.22,312.033]
[1741272016250,18.933972,146.25,146.13,54.9561221]
[1741272016453,80.8,146.24,146.13,54.9561221]
[1741272016851,0.28432314,146.22,146.13,54.9561221]
[1741272017161,18.64964886,146.21,146.08,6.0945]
[1741272017474,0.28432314,146.2,146.1,54.9561221]
[1741272017644,81.08432314,146.2,146.1,54.9561221]
[1741272017841,81.08432314,146.2,146.13,54.9561221]
[1741272017842,80.8,146.2,146.13,54.9561221]
[1741272018151,0.28432314,146.19,146.11,54.9561221]
[1741272018346,0.14216157,146.17,146.08,0.033]
[1741272018550,0.28432314,146.17,146.08,54.9891221]
[1741272018744,0.28432314,146.17,146.09,54.9561221]
[1741272018945,80.8,146.18,146.12,0.14216157]
[1741272019175,80.8,146.18,146.15,312.0]
[1741272019363,0.28432314,146.19,146.15,312.0]
[1741272019550,0.28432314,146.19,146.08,0.033]
[1741272019747,0.28432314,146.19,146.12,0.14216157]
[1741272019946,0.28432314,146.19,146.13,0.14216157]
[1741272020161,6.8399,146.2,146.13,55.09828367]
[1741272020354,6.8399,146.2,146.13,0.14216157]
[1741272020859,6.8399,146.2,146.12,0.14216157]
[1741272021162,0.28432314,146.19,146.1,54.9561221]
[1741272021343,99.733972,146.19,146.08,0.033]
[1741272021545,0.28432314,146.17,146.09,54.9561221]
[1741272021864,0.28432314,146.17,146.11,0.14216157]
[1741272022252,6.8418,146.16,146.09,54.9561221]
[1741272022455,6.8418,146.16,146.13,0.14216157]
[1741272022655,80.8,146.15,146.13,0.14216157]
[1741272023161,80.8,146.14,146.08,0.033]
[1741272023344,80.8,146.14,146.09,0.14216157]
[1741272023664,80.8,146.19,146.14,0.14216157]
[1741272024039,87.6404,146.19,146.14,0.14216157]
[1741272024243,99.733972,146.18,146.13,0.14216157]
[1741272024564,23.9414,146.19,146.08,0.033]
[1741272024565,18.933972,146.16,146.08,0.033]
[1741272024773,80.8,146.15,146.11,0.14216157]
[1741272024948,80.8,146.18,146.14,0.14216157]
[1741272025355,80.8,146.17,146.08,0.033]
[1741272025556,80.8,146.16,146.09,54.9561221]
[1741272025766,80.8,146.16,146.12,54.9561221]
[1741272026073,80.8,146.2,146.14,312.14216157]
[1741272026251,6.8395,146.21,146.16,0.14216157]
[1741272026452,80.8,146.22,146.16,55.09828367]
[1741272026453,87.6391,146.22,146.16,55.09828367]
[1741272026659,0.28432314,146.2,146.16,0.14216157]
[1741272026877,18.933972,146.2,146.08,0.033]
[1741272027166,18.933972,146.18,146.08,0.033]
[1741272027346,18.933972,146.16,146.08,0.033]
[1741272027667,80.8,146.15,146.11,54.9561221]
[1741272027869,0.28432314,146.2,146.08,0.033]
[1741272028073,80.8,146.26,146.11,20.14216157]
[1741272028366,104.7316,146.25,146.12,0.14216157]
[1741272028547,104.7316,146.25,146.11,54.9561221]
[1741272028548,0.14216157,146.23,146.11,54.9561221]
[1741272028753,20.79181043,146.21,146.08,0.033]
[1741272029050,174.1,146.24,146.08,0.033]
[1741272029051,0.28432314,146.18,146.08,0.033]
[1741272029252,20.933972,146.16,146.08,0.033]
[1741272029565,18.933972,146.14,146.08,0.033]
[1741272029866,18.933972,146.12,146.08,0.033]
[1741272030280,6.845,146.09,146.08,0.033]
[1741272030485,80.8,146.1,146.08,0.033]
[1741272030764,34.6984,146.15,146.1,0.14216157]
[1741272030765,80.8,146.14,146.1,0.14216157]
[1741272030983,6.8423,146.15,146.1,0.14216157]
[1741272031267,80.8,146.17,146.13,0.14216157]
[1741272031467,172.0501,146.21,146.13,0.14216157]
[1741272031468,6.3883,146.21,146.15,0.14216157]
[1741272031657,0.03,146.22,146.16,0.14216157]
[1741272032164,0.03,146.22,146.19,0.14216157]
[1741272032785,0.03,146.22,146.14,1.43639908]
[1741272032975,18.64964886,146.2,146.08,0.033]
[1741272033286,80.8,146.19,146.12,54.9561221]
[1741272033495,0.03,146.22,146.16,0.14216157]
[1741272033700,0.03,146.22,146.18,312.0]
[1741272034160,6.869,146.22,146.18,312.0]
[1741272034362,6.869,146.22,146.19,0.14216157]
[1741272034565,81.08432314,146.21,146.18,312.0]
[1741272034774,80.8,146.21,146.19,0.14216157]
[1741272035086,0.03,146.22,146.19,0.14216157]
[1741272035284,0.03,146.22,146.18,0.14216157]
[1741272035474,0.31432314,146.22,146.18,0.14216157]
[1741272035782,74.4117,146.21,146.13,0.14216157]
[1741272036162,73.48533825,146.21,146.15,0.14216157]
[1741272036489,80.32483825,146.21,146.17,0.14216157]
[1741272036779,0.03,146.22,146.19,0.14216157]
[1741272036973,6.8691,146.22,146.15,0.14216157]
[1741272037173,6.8691,146.22,146.14,54.9561221]
[1741272037174,0.03,146.22,146.18,55.09828367]
[1741272037381,0.03,146.22,146.21,0.14216157]
[1741272037977,0.03,146.22,146.21,312.14216157]
[1741272038779,0.03,146.22,146.21,55.09828367]
[1741272038985,0.03,146.22,146.21,0.14216157]
[1741272039689,0.03,146.22,146.21,55.09828367]
[1741272039892,0.03,146.22,146.21,0.14216157]
[1741272040993,0.03,146.22,146.17,54.9561221]
[1741272041190,0.03,146.22,146.18,0.033]
[1741272041389,0.03,146.22,146.2,55.09828367]
[1741272041574,0.03,146.22,146.2,0.14216157]
[1741272041779,0.03,146.22,146.21,312.14216157]
[1741272042495,0.03,146.22,146.21,367.09828367]
[1741272042696,0.03,146.22,146.21,373.93768367]
[1741272042913,73.48533825,146.32,146.22,0.14216157]
[1741272043076,6.8329,146.35,146.31,54.9561221]
[1741272043278,6.8326,146.36,146.32,55.09828367]
[1741272043484,0.03,146.37,146.34,55.09828367]
[1741272043690,0.03,146.37,146.36,0.14216157]
[1741272044093,0.03,146.37,146.36,55.09828367]
[1741272044475,0.03,146.37,146.36,0.14216157]
[1741272045588,0.03,146.37,146.32,0.14216157]
[1741272045896,0.03,146.37,146.34,0.14216157]
[1741272046097,0.03,146.37,146.34,312.14216157]
[1741272046283,0.03,146.37,146.34,367.09828367]
[1741272046596,0.03,146.37,146.34,312.14216157]
[1741272047002,0.03,146.37,146.34,312.0]
[1741272047298,0.03,146.37,146.3,54.9561221]
[1741272047497,0.03,146.37,146.35,0.14216157]
[1741272047702,0.03,146.37,146.35,55.09828367]
[1741272048002,0.03,146.37,146.36,55.09828367]
[1741272048301,0.03,146.37,146.36,0.14216157]
[1741272048505,0.03,146.37,146.36,56.53243545]
[1741272048701,0.03,146.37,146.36,55.09828367]
[1741272049093,0.03,146.37,146.36,137.83262092]
[1741272049288,0.03,146.37,146.36,136.39828367]
[1741272049491,0.03,146.37,146.36,0.14216157]
[1741272049792,0.03,146.37,146.33,54.9561221]
[1741272049992,0.03,146.37,146.36,55.09828367]
[1741272050182,0.03,146.37,146.36,0.14216157]
[1741272052100,0.03,146.37,146.36,55.09828367]
[1741272053099,0.03,146.37,146.36,0.14216157]
[1741272053298,0.03,146.37,146.36,56.53266294]
[1741272053811,0.03,146.37,146.36,368.53266294]
[1741272054006,0.03,146.37,146.36,492.16465567]
[1741272054212,6.8281,146.46,146.43,0.14216157]
[1741272054594,97.38293825,146.46,146.34,81.3]
[1741272054788,0.28432314,146.44,146.31,81.3]
[1741272054989,73.48533825,146.43,146.38,0.14216157]
[1741272055189,73.48533825,146.43,146.35,54.9561221]
[1741272055385,73.48533825,146.42,146.36,54.9561221]
[1741272055696,0.28432314,146.4,146.32,54.9561221]
[1741272055904,0.28432314,146.43,146.29,6.6174]
[1741272056230,73.48533825,146.42,146.34,54.9561221]
[1741272056427,23.9071,146.4,146.33,54.9561221]
[1741272056732,23.9071,146.4,146.32,54.9561221]
[1741272056889,92.41931025,146.39,146.28,2.7506]
[1741272057094,73.48533825,146.38,146.33,54.9561221]
[1741272057313,6.8306,146.4,146.34,54.9561221]
[1741272057507,6.8306,146.4,146.35,0.14216157]
[1741272057710,0.28432314,146.39,146.31,54.9561221]
[1741272057895,0.28432314,146.39,146.32,54.9561221]
[1741272058101,73.48533825,146.38,146.31,54.9561221]
[1741272058304,73.48533825,146.38,146.3,54.9561221]
[1741272058612,6.8324,146.36,146.29,54.9561221]
[1741272058800,73.76966139,146.35,146.29,54.9561221]
[1741272059000,73.48533825,146.34,146.26,54.9561221]
[1741272059192,73.48533825,146.33,146.27,0.14216157]
[1741272059514,80.31683825,146.38,146.32,0.14216157]
[1741272059811,73.48533825,146.37,146.32,55.09828367]